[Event "6th Cattolica Open 2019"]
[Site "Cattolica"]
[Date "2019.06.08"]
[Round "1.1"]
[White "Dreev, Aleksey"]
[Black "Antolak, Julia"]
[Result "1-0"]
[ECO "E60"]
[WhiteElo "2657"]
[BlackElo "2245"]
[Annotator "RC"]
[PlyCount "59"]
[EventDate "2019.06.08"]
[EventType "swiss"]
[EventCountry "ITA"]
[SourceTitle "playchess.com"]
[Source "ChessBase"]
[SourceQuality "1"]
[TimeControl "40/5400+30:900+30"]

1. d4 {[%emt 0:00:00]} Nf6 {[%emt 0:00:00]} 2. Nf3 {[%emt 0:00:02]} g6 {[%emt 0:00:00]} 3. g3 {[%emt 0:00:18]} Bg7 {[%emt 0:00:08]} 4. Bg2 {[%emt 0:00:05]} O-O {[%emt 0:00:22]} 5. O-O {[%emt 0:00:04]} d6 {[%emt 0:01:56]} 6. b3 {[%emt 0:02:00]} c5 {[%emt 0:04:23]} 7. c4 {[%emt 0:00:47]} a6 {[%emt 0:03:01]} 8. Bb2 {[%emt 0:09:17]} Qc7 {[%emt 0:11:51]} 9. Nc3 {[%emt 0:01:07]} e6 {[%emt 0:04:51]} 10. e4 {[%emt 0:05:34]} cxd4 {[%emt 0:04:03]} 11. Nxd4 {[%emt 0:00:09]} Nbd7 {[%emt 0:02:17]} 12. Qd2 {[%emt 0:01:31]} Rd8 {[%emt 0:05:02]} 13. Rad1 {[%emt 0:01:28]} Nf8 {[%emt 0:05:46]} 14. Qe2 {[%emt 0:15:12]} Bd7 {[%emt 0:04:24]} 15. Rd2 {[%emt 0:03:03]} e5 {[%emt 0:04:47]} 16. Nc2 {[%emt 0:00:45]} Bc6 {[%emt 0:01:57]} 17. Rfd1 {[%emt 0:05:19]} Bh6 {[%emt 0:05:31]} 18. Rd3 {[%emt 0:00:25]} Rac8 {[%emt 0:00:23]} 19. Bh3 {[%emt 0:05:13]} Rb8 {[%emt 0:03:36]} 20. Ba3 {[%emt 0:01:07]} Ne8 {[%emt 0:02:08]} 21. Nb4 {[%emt 0:02:50]} Qa5 {[%emt 0:03:10]} 22. Qb2 {[%emt 0:01:00]} Bd7 {[%emt 0:04:40]} 23. Nbd5 {[%emt 0:03:04]} b5 {[%emt 0:05:36]} 24. Bb4 {[%emt 0:05:40]} Qxb4 {[%emt 0:00:44]} 25. Nxb4 {[%emt 0:00:07]} bxc4 {[%emt 0:00:06]} 26. Bxd7 {[%emt 0:00:29]} cxd3 {[%emt 0:01:30]} 27. Bxe8 {[%emt 0:01:43]} Rxb4 {[%emt 0:00:16]} 28. Nd5 {[%emt 0:01:13]} Rd4 {[%emt 0:00:35]} 29. Ne7+ {[%emt 0:00:59]} Kg7 {[%emt 0:00:09]} 30. Nc6 {[%emt 0:00:08]} 1-0

[Event "6th Cattolica Open 2019"]
[Site "Cattolica"]
[Date "2019.06.08"]
[Round "1.3"]
[White "Fedorchuk, Sergey A."]
[Black "Orfini, Nicolo`"]
[Result "1-0"]
[ECO "C41"]
[WhiteElo "2631"]
[BlackElo "2228"]
[Annotator "RC"]
[PlyCount "51"]
[EventDate "2019.06.08"]
[EventType "swiss"]
[EventCountry "ITA"]
[SourceTitle "playchess.com"]
[Source "ChessBase"]
[SourceQuality "1"]
[TimeControl "40/5400+30:900+30"]

1. e4 {[%emt 0:05:34]} d6 {[%emt 0:00:00]} 2. d4 {[%emt 0:00:14]} Nf6 {[%emt 0:00:00]} 3. Nc3 {[%emt 0:00:08]} e5 {[%emt 0:00:13]} 4. Nf3 {[%emt 0:00:13]} Nbd7 {[%emt 0:01:17]} 5. Bc4 {[%emt 0:00:51]} Be7 {[%emt 0:00:07]} 6. a4 {[%emt 0:00:21]} a5 {[%emt 0:01:23]} 7. O-O {[%emt 0:01:47]} O-O {[%emt 0:00:14]} 8. Qe2 {[%emt 0:00:38]} c6 {[%emt 0:10:19]} 9. Rd1 {[%emt 0:00:59]} Qc7 {[%emt 0:03:23]} 10. h3 {[%emt 0:01:24]} exd4 {[%emt 0:13:59]} 11. Nxd4 {[%emt 0:01:17]} Ne5 {[%emt 0:00:39]} 12. Bb3 {[%emt 0:01:26]} Re8 {[%emt 0:03:29]} 13. Bg5 {[%emt 0:06:01]} h6 {[%emt 0:06:07]} 14. Bh4 {[%emt 0:00:43]} Ng6 {[%emt 0:01:28]} 15. Bg3 {[%emt 0:05:09]} Bf8 {[%emt 0:04:23]} 16. Rd2 {[%emt 0:04:54]} Ne5 {[%emt 0:10:30]} 17. Re1 {[%emt 0:00:46]} b6 {[%emt 0:02:55]} 18. f4 {[%emt 0:05:26]} Ba6 {[%emt 0:01:11]} 19. Qf2 {[%emt 0:11:25]} Nc4 {[%emt 0:03:51]} 20. Bxc4 {[%emt 0:00:21]} Bxc4 {[%emt 0:00:05]} 21. b3 {[%emt 0:00:26]} Ba6 {[%emt 0:03:48]} 22. e5 {[%emt 0:01:21]} Nh5 {[%emt 0:04:13]} 23. Bh2 {[%emt 0:00:21]} g6 {[%emt 0:00:19]} 24. g4 {[%emt 0:01:47]} dxe5 {[%emt 0:03:51]} 25. fxe5 {[%emt 0:00:07]} Bb4 {[%emt 0:00:27]} 26. Ne4 {[%emt 0:00:28]} 1-0

[Event "6th Cattolica Open 2019"]
[Site "Cattolica"]
[Date "2019.06.08"]
[Round "1.4"]
[White "Ojas Kulkarni"]
[Black "Vovk, Yuri"]
[Result "0-1"]
[ECO "A21"]
[WhiteElo "2226"]
[BlackElo "2586"]
[Annotator "ChessBase"]
[PlyCount "50"]
[EventDate "2019.06.08"]
[EventType "swiss"]
[EventCountry "ITA"]
[SourceTitle "playchess.com"]
[Source "ChessBase"]
[SourceQuality "1"]
[TimeControl "40/5400+30:900+30"]

1. c4 {[%emt 0:00:00]} e5 {[%emt 0:00:53]} 2. g3 {[%emt 0:00:14]} d6 {[%emt 0:05:45]} 3. Bg2 {[%emt 0:00:21]} f5 {[%emt 0:00:15]} 4. d4 {[%emt 0:04:52]} Be7 {[%emt 0:00:33]} 5. Nc3 {[%emt 0:01:37]} Nf6 {[%emt 0:00:27]} 6. b3 {[%emt 0:00:31]} c6 {[%emt 0:02:56]} 7. Bb2 {[%emt 0:01:56]} O-O {[%emt 0:01:05]} 8. e3 {[%emt 0:03:53]} Be6 {[%emt 0:03:43]} 9. Nge2 {[%emt 0:01:27]} Bf7 {[%emt 0:01:40]} 10. O-O {[%emt 0:16:47]} Na6 {[%emt 0:01:13]} 11. e4 {[%emt 0:09:02]} fxe4 {[%emt 0:06:36]} 12. dxe5 {[%emt 0:00:47]} dxe5 {[%emt 0:00:24]} 13. Nxe4 {[%emt 0:00:41]} Bh5 {[%emt 0:08:50]} 14. Qxd8 {[%emt 0:05:25]} Raxd8 {[%emt 0:00:17]} 15. N2c3 {[%emt 0:04:33]} Nb4 {[%emt 0:09:01]} 16. Ba3 {[%emt 0:09:40]} a5 {[%emt 0:00:06]} 17. h3 {[%emt 0:01:37]} Rd3 {[%emt 0:02:18]} 18. g4 {[%emt 0:11:21]} Bg6 {[%emt 0:00:27]} 19. Rfd1 {[%emt 0:00:56]} Rfd8 {[%emt 0:04:39]} 20. Nxf6+ {[%emt 0:05:16]} gxf6 {[%emt 0:01:31]} 21. Rxd3 {[%emt 0:04:19]} Rxd3 {[%emt 0:00:07]} 22. Bxb4 {[%emt 0:00:10]} Bxb4 {[%emt 0:01:35]} 23. Ne4 {[%emt 0:00:01]} Kf7 {[%emt 0:00:28]} 24. Rf1 {[%emt 0:08:49]} Rd4 {[%emt 0:03:05]} 25. f4 {[%emt 0:01:49]} Bxe4 {[%emt 0:00:28]} 0-1

[Event "6th Cattolica Open 2019"]
[Site "Cattolica"]
[Date "2019.06.08"]
[Round "1.5"]
[White "Martinez Alcantara, Jose Eduardo"]
[Black "Gallana, Marco"]
[Result "1-0"]
[ECO "A34"]
[WhiteElo "2583"]
[BlackElo "2221"]
[Annotator "ChessBase"]
[PlyCount "91"]
[EventDate "2019.06.08"]
[EventType "swiss"]
[EventCountry "ITA"]
[SourceTitle "playchess.com"]
[Source "ChessBase"]
[SourceQuality "1"]
[TimeControl "40/5400+30:900+30"]

1. c4 {[%emt 0:00:00]} Nf6 {[%emt 0:00:00]} 2. Nf3 {[%emt 0:00:00]} c5 {[%emt 0:00:01]} 3. Nc3 {[%emt 0:00:00]} d5 {[%emt 0:01:04]} 4. cxd5 {[%emt 0:01:42]} Nxd5 {[%emt 0:00:07]} 5. g3 {[%emt 0:00:03]} Nc6 {[%emt 0:01:25]} 6. Bg2 {[%emt 0:00:07]} g6 {[%emt 0:01:36]} 7. Qb3 {[%emt 0:03:17]} Nb6 {[%emt 0:19:19]} 8. d3 {[%emt 0:05:24]} Bg7 {[%emt 0:01:42]} 9. Be3 {[%emt 0:02:32]} Nd4 {[%emt 0:07:26]} 10. Bxd4 {[%emt 0:04:34]} cxd4 {[%emt 0:01:00]} 11. Ne4 {[%emt 0:00:23]} Be6 {[%emt 0:02:53]} 12. Qa3 {[%emt 0:03:58]} O-O {[%emt 0:02:38]} 13. O-O {[%emt 0:00:36]} Bd5 {[%emt 0:08:03]} 14. Nfd2 {[%emt 0:05:22]} Re8 {[%emt 0:11:27]} 15. Rfc1 {[%emt 0:04:14]} Bc6 {[%emt 0:13:00]} 16. Nb3 {[%emt 0:06:27]} Bf8 {[%emt 0:08:23]} 17. Na5 {[%emt 0:04:24]} Bd5 {[%emt 0:00:37]} 18. b4 {[%emt 0:10:53]} Qd7 {[%emt 0:05:32]} 19. Rc2 {[%emt 0:07:41]} Bxe4 {[%emt 0:05:13]} 20. Bxe4 {[%emt 0:00:51]} Nd5 {[%emt 0:00:32]} 21. Bxd5 {[%emt 0:05:17]} Qxd5 {[%emt 0:00:07]} 22. Qb3 {[%emt 0:00:10]} Qxb3 {[%emt 0:02:50]} 23. axb3 {[%emt 0:00:46]} e5 {[%emt 0:02:56]} 24. b5 {[%emt 0:00:24]} Bb4 {[%emt 0:02:25]} 25. Nxb7 {[%emt 0:07:28]} Bc3 {[%emt 0:00:20]} 26. Ra6 {[%emt 0:00:47]} Reb8 {[%emt 0:01:27]} 27. Nd6 {[%emt 0:00:32]} Bb4 {[%emt 0:00:46]} 28. Ne4 {[%emt 0:00:53]} Rxb5 {[%emt 0:00:23]} 29. Rc7 {[%emt 0:00:11]} Rb6 {[%emt 0:00:33]} 30. Raxa7 {[%emt 0:04:11]} Rxa7 {[%emt 0:00:05]} 31. Rxa7 {[%emt 0:00:02]} h6 {[%emt 0:01:04]} 32. g4 {[%emt 0:00:27]} Kf8 {[%emt 0:00:24]} 33. Kg2 {[%emt 0:00:47]} Be1 {[%emt 0:00:41]} 34. Kf3 {[%emt 0:09:20]} Bb4 {[%emt 0:00:05]} 35. h4 {[%emt 0:01:52]} Be7 {[%emt 0:00:35]} 36. g5 {[%emt 0:00:19]} hxg5 {[%emt 0:00:15]} 37. hxg5 {[%emt 0:00:01]} Rxb3 {[%emt 0:00:57]} 38. Ra5 {[%emt 0:00:10]} Rb6 {[%emt 0:00:38]} 39. Rxe5 {[%emt 0:00:09]} Rb2 {[%emt 0:00:30]} 40. Ra5 {[%emt 0:00:00]} Kg7 {[%emt 0:00:00]} 41. Ra4 {[%emt 0:03:10]} Rb5 {[%emt 0:01:03]} 42. Rxd4 {[%emt 0:03:17]} Bxg5 {[%emt 0:01:31]} 43. Rd7 {[%emt 0:00:03]} Rf5+ {[%emt 0:01:59]} 44. Kg4 {[%emt 0:00:09]} Bf6 {[%emt 0:01:06]} 45. f4 {[%emt 0:00:28]} Bb2 {[%emt 0:00:39]} 46. Nd6 {[%emt 0:00:44]} 1-0

[Event "6th Cattolica Open 2019"]
[Site "Cattolica"]
[Date "2019.06.08"]
[Round "1.6"]
[White "Soto, Miguel Angel"]
[Black "Epishin, Vladimir"]
[Result "1/2-1/2"]
[ECO "B01"]
[WhiteElo "2217"]
[BlackElo "2564"]
[Annotator "ChessBase"]
[PlyCount "68"]
[EventDate "2019.06.08"]
[EventType "swiss"]
[EventCountry "ITA"]
[SourceTitle "playchess.com"]
[Source "ChessBase"]
[SourceQuality "1"]
[TimeControl "40/5400+30:900+30"]

1. e4 {[%emt 0:00:00]} d5 {[%emt 0:00:00]} 2. exd5 {[%emt 0:02:52]} Qxd5 {[%emt 0:00:00]} 3. Nc3 {[%emt 0:01:47]} Qd6 {[%emt 0:00:03]} 4. d4 {[%emt 0:02:08]} Nf6 {[%emt 0:00:03]} 5. h3 {[%emt 0:04:32]} a6 {[%emt 0:06:19]} 6. g3 {[%emt 0:08:19]} e6 {[%emt 0:03:01]} 7. Bg2 {[%emt 0:02:16]} Be7 {[%emt 0:00:02]} 8. Nge2 {[%emt 0:04:53]} Nc6 {[%emt 0:02:09]} 9. O-O {[%emt 0:02:02]} O-O {[%emt 0:00:04]} 10. Bf4 {[%emt 0:07:49]} Qd7 {[%emt 0:02:27]} 11. Qd2 {[%emt 0:05:50]} e5 {[%emt 0:04:39]} 12. dxe5 {[%emt 0:06:59]} Qxd2 {[%emt 0:00:39]} 13. Bxd2 {[%emt 0:01:45]} Nxe5 {[%emt 0:00:02]} 14. Bf4 {[%emt 0:03:57]} Bd6 {[%emt 0:00:03]} 15. b3 {[%emt 0:01:49]} Rb8 {[%emt 0:02:23]} 16. Rad1 {[%emt 0:07:21]} h6 {[%emt 0:06:23]} 17. Nd5 {[%emt 0:02:57]} Nxd5 {[%emt 0:05:50]} 18. Rxd5 {[%emt 0:00:12]} Re8 {[%emt 0:00:36]} 19. Nc3 {[%emt 0:03:02]} Bf5 {[%emt 0:01:36]} 20. Ne4 {[%emt 0:05:55]} Bxe4 {[%emt 0:01:59]} 21. Bxe4 {[%emt 0:01:13]} Nc4 {[%emt 0:01:33]} 22. Bxd6 {[%emt 0:09:25]} Nxd6 {[%emt 0:01:06]} 23. Bf3 {[%emt 0:00:25]} Re7 {[%emt 0:07:24]} 24. c4 {[%emt 0:01:59]} g6 {[%emt 0:01:18]} 25. Rfd1 {[%emt 0:04:29]} Ne8 {[%emt 0:01:41]} 26. Kf1 {[%emt 0:03:13]} c6 {[%emt 0:01:11]} 27. R5d3 {[%emt 0:01:56]} Nc7 {[%emt 0:01:28]} 28. b4 {[%emt 0:01:26]} Kf8 {[%emt 0:00:46]} 29. Rd8+ {[%emt 0:01:19]} Rxd8 {[%emt 0:00:22]} 30. Rxd8+ {[%emt 0:00:07]} Re8 {[%emt 0:00:14]} 31. Rd7 {[%emt 0:00:58]} Re7 {[%emt 0:00:07]} 32. Rd8+ {[%emt 0:00:08]} Re8 {[%emt 0:00:13]} 33. Rd7 {[%emt 0:00:09]} Re7 {[%emt 0:00:05]} 34. Rd8+ {[%emt 0:00:05]} Re8 {[%emt 0:00:04]} 1/2-1/2

[Event "6th Cattolica Open 2019"]
[Site "Cattolica"]
[Date "2019.06.08"]
[Round "1.7"]
[White "Kharitonov, Alexandr"]
[Black "Mooser, Stefan"]
[Result "1/2-1/2"]
[ECO "D30"]
[WhiteElo "2547"]
[BlackElo "2215"]
[Annotator "ChessBase"]
[PlyCount "61"]
[EventDate "2019.06.08"]
[EventType "swiss"]
[EventCountry "ITA"]
[SourceTitle "playchess.com"]
[Source "ChessBase"]
[SourceQuality "1"]
[TimeControl "40/5400+30:900+30"]

1. d4 {[%emt 0:00:00]} d5 {[%emt 0:00:00]} 2. c4 {[%emt 0:00:00]} c6 {[%emt 0:00:07]} 3. Nf3 {[%emt 0:00:09]} e6 {[%emt 0:00:29]} 4. e3 {[%emt 0:00:31]} Nf6 {[%emt 0:00:22]} 5. b3 {[%emt 0:01:37]} Bd6 {[%emt 0:01:45]} 6. Bb2 {[%emt 0:01:12]} O-O {[%emt 0:00:57]} 7. Nbd2 {[%emt 0:00:42]} Nbd7 {[%emt 0:04:01]} 8. Bd3 {[%emt 0:00:44]} Qe7 {[%emt 0:01:22]} 9. Ne5 {[%emt 0:00:48]} c5 {[%emt 0:06:08]} 10. O-O {[%emt 0:01:40]} b6 {[%emt 0:00:51]} 11. cxd5 {[%emt 0:04:42]} exd5 {[%emt 0:00:50]} 12. f4 {[%emt 0:02:13]} Bb7 {[%emt 0:02:10]} 13. Qf3 {[%emt 0:00:53]} Rac8 {[%emt 0:09:17]} 14. Qh3 {[%emt 0:05:18]} g6 {[%emt 0:09:55]} 15. Rae1 {[%emt 0:08:04]} Rc7 {[%emt 0:03:03]} 16. Qh6 {[%emt 0:05:54]} c4 {[%emt 0:13:55]} 17. bxc4 {[%emt 0:01:08]} Bb4 {[%emt 0:00:32]} 18. Re2 {[%emt 0:05:54]} Bxd2 {[%emt 0:08:16]} 19. Rxd2 {[%emt 0:01:03]} dxc4 {[%emt 0:00:15]} 20. Bxc4 {[%emt 0:02:33]} Ne4 {[%emt 0:14:33]} 21. Rc2 {[%emt 0:06:50]} Nxe5 {[%emt 0:01:32]} 22. fxe5 {[%emt 0:05:00]} Bd5 {[%emt 0:02:40]} 23. Bd3 {[%emt 0:04:22]} Rxc2 {[%emt 0:00:31]} 24. Bxc2 {[%emt 0:00:03]} Qb4 {[%emt 0:00:25]} 25. Ba1 {[%emt 0:14:23]} Nd2 {[%emt 0:05:51]} 26. Rd1 {[%emt 0:01:21]} Rc8 {[%emt 0:01:14]} 27. e4 {[%emt 0:06:20]} Nxe4 {[%emt 0:02:27]} 28. Bxe4 {[%emt 0:01:04]} Bxe4 {[%emt 0:00:06]} 29. e6 {[%emt 0:00:43]} fxe6 {[%emt 0:02:58]} 30. d5 {[%emt 0:00:05]} Qf8 {[%emt 0:00:29]} 31. Qxf8+ {[%emt 0:14:15]} 1/2-1/2

[Event "6th Cattolica Open 2019"]
[Site "Cattolica"]
[Date "2019.06.08"]
[Round "1.8"]
[White "Barrish, Daniel"]
[Black "Basso, Pier Luigi"]
[Result "0-1"]
[ECO "D10"]
[WhiteElo "2209"]
[BlackElo "2539"]
[Annotator "ChessBase"]
[PlyCount "102"]
[EventDate "2019.06.08"]
[EventType "swiss"]
[EventCountry "ITA"]
[SourceTitle "playchess.com"]
[Source "ChessBase"]
[SourceQuality "1"]
[TimeControl "40/5400+30:900+30"]

1. d4 {[%emt 0:00:00]} d5 {[%emt 0:00:00]} 2. c4 {[%emt 0:00:00]} c6 {[%emt 0:00:00]} 3. cxd5 {[%emt 0:00:07]} cxd5 {[%emt 0:00:00]} 4. Nc3 {[%emt 0:00:04]} Nf6 {[%emt 0:00:00]} 5. Bf4 {[%emt 0:00:07]} Nc6 {[%emt 0:00:00]} 6. e3 {[%emt 0:00:09]} Bg4 {[%emt 0:00:11]} 7. Qb3 {[%emt 0:00:30]} Na5 {[%emt 0:00:29]} 8. Qa4+ {[%emt 0:00:08]} Bd7 {[%emt 0:00:08]} 9. Qc2 {[%emt 0:00:04]} e6 {[%emt 0:00:23]} 10. Bd3 {[%emt 0:02:19]} Nh5 {[%emt 0:03:06]} 11. Bg3 {[%emt 0:02:08]} Rc8 {[%emt 0:03:17]} 12. Nge2 {[%emt 0:26:25]} Nxg3 {[%emt 0:04:13]} 13. hxg3 {[%emt 0:00:36]} g6 {[%emt 0:01:18]} 14. O-O {[%emt 0:05:17]} b5 {[%emt 0:12:18]} 15. a3 {[%emt 0:04:35]} Bd6 {[%emt 0:09:36]} 16. b4 {[%emt 0:12:52]} Nc4 {[%emt 0:00:43]} 17. Bxc4 {[%emt 0:02:23]} Rxc4 {[%emt 0:00:09]} 18. Nf4 {[%emt 0:00:52]} h5 {[%emt 0:10:02]} 19. Nxg6 {[%emt 0:12:56]} Rxc3 {[%emt 0:03:51]} 20. Qxc3 {[%emt 0:00:05]} fxg6 {[%emt 0:00:05]} 21. Qd3 {[%emt 0:00:09]} Qg5 {[%emt 0:01:36]} 22. e4 {[%emt 0:00:19]} h4 {[%emt 0:05:57]} 23. e5 {[%emt 0:03:25]} hxg3 {[%emt 0:00:20]} 24. Qxg3 {[%emt 0:04:01]} Qxg3 {[%emt 0:00:36]} 25. fxg3 {[%emt 0:00:05]} Bc7 {[%emt 0:00:05]} 26. Kf2 {[%emt 0:05:57]} Bb6 {[%emt 0:01:22]} 27. Rad1 {[%emt 0:03:52]} Rh5 {[%emt 0:00:55]} 28. Ke2 {[%emt 0:01:04]} Rg5 {[%emt 0:00:37]} 29. Kf3 {[%emt 0:01:43]} Rf5+ {[%emt 0:01:20]} 30. Ke2 {[%emt 0:00:05]} Rh5 {[%emt 0:00:17]} 31. Kf3 {[%emt 0:04:46]} Ke7 {[%emt 0:00:13]} 32. g4 {[%emt 0:01:55]} Rh8 {[%emt 0:00:14]} 33. Ke3 {[%emt 0:02:29]} Rc8 {[%emt 0:00:58]} 34. Rh1 {[%emt 0:02:37]} Rc3+ {[%emt 0:01:24]} 35. Rd3 {[%emt 0:00:54]} Rc2 {[%emt 0:00:02]} 36. Rh7+ {[%emt 0:00:48]} Kd8 {[%emt 0:00:04]} 37. g3 {[%emt 0:00:58]} a5 {[%emt 0:02:44]} 38. Rg7 {[%emt 0:00:43]} Be8 {[%emt 0:02:11]} 39. Kf4 {[%emt 0:01:19]} Rc4 {[%emt 0:02:20]} 40. bxa5 {[%emt 0:00:00]} Bxd4 {[%emt 0:00:00]} 41. a6 {[%emt 0:03:37]} Ra4 {[%emt 0:01:46]} 42. a7 {[%emt 0:01:36]} Bc5+ {[%emt 0:01:34]} 43. Kf3 {[%emt 0:00:48]} Be7 {[%emt 0:00:15]} 44. Rd1 {[%emt 0:02:10]} Rxa3+ {[%emt 0:00:13]} 45. Ke2 {[%emt 0:00:11]} Rxa7 {[%emt 0:00:07]} 46. Rh1 {[%emt 0:00:02]} Bc5 {[%emt 0:01:34]} 47. Rg8 {[%emt 0:00:23]} Bd4 {[%emt 0:01:57]} 48. Rhh8 {[%emt 0:01:17]} Re7 {[%emt 0:00:02]} 49. Rxg6 {[%emt 0:00:30]} Bxe5 {[%emt 0:00:05]} 50. Rf8 {[%emt 0:01:26]} b4 {[%emt 0:02:04]} 51. Kd3 {[%emt 0:02:09]} b3 {[%emt 0:00:16]} 0-1

[Event "6th Cattolica Open 2019"]
[Site "Cattolica"]
[Date "2019.06.08"]
[Round "1.9"]
[White "Rychagov, Andrey"]
[Black "Alok Sinha"]
[Result "1-0"]
[ECO "D45"]
[WhiteElo "2520"]
[BlackElo "2205"]
[Annotator "ChessBase"]
[PlyCount "121"]
[EventDate "2019.06.08"]
[EventType "swiss"]
[EventCountry "ITA"]
[SourceTitle "playchess.com"]
[Source "ChessBase"]
[SourceQuality "1"]
[TimeControl "40/5400+30:900+30"]

1. d4 {[%emt 0:00:00]} d5 {[%emt 0:00:00]} 2. c4 {[%emt 0:00:00]} c6 {[%emt 0:00:00]} 3. Nf3 {[%emt 0:00:00]} Nf6 {[%emt 0:00:00]} 4. Nc3 {[%emt 0:00:54]} e6 {[%emt 0:00:00]} 5. e3 {[%emt 0:00:36]} Nbd7 {[%emt 0:00:04]} 6. Qc2 {[%emt 0:00:40]} Bd6 {[%emt 0:01:59]} 7. b3 {[%emt 0:00:29]} Qe7 {[%emt 0:08:00]} 8. Be2 {[%emt 0:01:04]} O-O {[%emt 0:02:12]} 9. Bb2 {[%emt 0:02:32]} b6 {[%emt 0:05:51]} 10. O-O {[%emt 0:00:59]} Bb7 {[%emt 0:00:43]} 11. Rac1 {[%emt 0:02:53]} Rac8 {[%emt 0:07:06]} 12. Qb1 {[%emt 0:02:34]} c5 {[%emt 0:03:58]} 13. cxd5 {[%emt 0:04:04]} exd5 {[%emt 0:03:00]} 14. Rfd1 {[%emt 0:07:20]} Rfe8 {[%emt 0:07:15]} 15. Qf5 {[%emt 0:11:06]} Bb8 {[%emt 0:13:56]} 16. Bb5 {[%emt 0:16:50]} Red8 {[%emt 0:05:19]} 17. Ba3 {[%emt 0:11:52]} Nf8 {[%emt 0:07:47]} 18. Bd3 {[%emt 0:06:03]} Ne6 {[%emt 0:06:40]} 19. Qh3 {[%emt 0:07:12]} Ne4 {[%emt 0:07:05]} 20. dxc5 {[%emt 0:11:23]} bxc5 {[%emt 0:02:51]} 21. Qh4 {[%emt 0:00:12]} Qxh4 {[%emt 0:09:31]} 22. Nxh4 {[%emt 0:00:03]} Nxc3 {[%emt 0:02:13]} 23. Rxc3 {[%emt 0:00:03]} g6 {[%emt 0:02:27]} 24. Nf3 {[%emt 0:02:42]} d4 {[%emt 0:02:32]} 25. Rcc1 {[%emt 0:00:36]} dxe3 {[%emt 0:00:59]} 26. fxe3 {[%emt 0:00:03]} Bd6 {[%emt 0:00:28]} 27. Bc4 {[%emt 0:00:44]} Kf8 {[%emt 0:00:58]} 28. Bb2 {[%emt 0:01:52]} Ke7 {[%emt 0:00:25]} 29. Rf1 {[%emt 0:02:41]} f5 {[%emt 0:00:33]} 30. e4 {[%emt 0:03:23]} Bxe4 {[%emt 0:00:34]} 31. Bxe6 {[%emt 0:00:07]} Kxe6 {[%emt 0:00:03]} 32. Ng5+ {[%emt 0:00:04]} Kd5 {[%emt 0:00:55]} 33. Nxh7 {[%emt 0:03:26]} Be7 {[%emt 0:00:30]} 34. Bf6 {[%emt 0:00:35]} Ke6 {[%emt 0:00:31]} 35. Bxe7 {[%emt 0:00:30]} Kxe7 {[%emt 0:00:01]} 36. Rf2 {[%emt 0:00:21]} c4 {[%emt 0:01:00]} 37. bxc4 {[%emt 0:00:40]} Rxc4 {[%emt 0:00:26]} 38. Re1 {[%emt 0:00:24]} Rd5 {[%emt 0:00:35]} 39. Ng5 {[%emt 0:00:20]} Rdd4 {[%emt 0:00:30]} 40. Rfe2 {[%emt 0:00:00]} Kf6 {[%emt 0:00:00]} 41. Nxe4+ {[%emt 0:03:20]} Rxe4 {[%emt 0:00:52]} 42. Rxe4 {[%emt 0:02:04]} fxe4 {[%emt 0:00:11]} 43. Kf2 {[%emt 0:00:17]} Ke5 {[%emt 0:02:19]} 44. Re2 {[%emt 0:00:19]} a5 {[%emt 0:03:09]} 45. Rb2 {[%emt 0:02:29]} a4 {[%emt 0:01:09]} 46. Ke2 {[%emt 0:03:09]} a3 {[%emt 0:07:15]} 47. Rb5+ {[%emt 0:02:06]} Kd4 {[%emt 0:01:25]} 48. Kd2 {[%emt 0:00:06]} e3+ {[%emt 0:01:13]} 49. Kd1 {[%emt 0:00:03]} Kd3 {[%emt 0:01:13]} 50. Rd5+ {[%emt 0:01:37]} Ke4 {[%emt 0:01:25]} 51. Ra5 {[%emt 0:01:46]} e2+ {[%emt 0:00:51]} 52. Kxe2 {[%emt 0:00:33]} Rc2+ {[%emt 0:00:03]} 53. Kf1 {[%emt 0:00:17]} Rxa2 {[%emt 0:00:06]} 54. Kg1 {[%emt 0:03:21]} Kf4 {[%emt 0:01:12]} 55. Ra4+ {[%emt 0:00:19]} Kf5 {[%emt 0:00:26]} 56. h3 {[%emt 0:00:11]} g5 {[%emt 0:00:38]} 57. Kh2 {[%emt 0:00:04]} Ke5 {[%emt 0:00:28]} 58. Kg3 {[%emt 0:00:06]} Kf5 {[%emt 0:00:03]} 59. Ra5+ {[%emt 0:00:06]} Kf6 {[%emt 0:00:13]} 60. Kf3 {[%emt 0:00:05]} Kg6 {[%emt 0:01:11]} 61. Ra6+ {[%emt 0:00:23]} 1-0